fUSD/lending_fUSD_20260510
["ID","MTS","AMOUNT","RATE_DAILY","PERIOD"]
[421984110,1778403126000,250.0,6.665e-05,2]
[421984111,1778403126000,250.0,7.445e-05,2]
[421984112,1778403126000,-3802.72059502,9.815e-05,2]
[421984113,1778403126000,-31281.74212229,9.915e-05,2]
[421984114,1778403126000,-362.91570498,9.915e-05,2]
[421984115,1778403126000,-13765.46607812,9.915e-05,2]
[421984118,1778403126000,-500.0,0.0001,2]
[421984119,1778403126000,-500.0,0.0001,2]
[421984122,1778403126000,-287.32485651,0.0001,2]
[421984121,1778403126000,-196.36914245,0.0001,2]
[421984120,1778403126000,-500.0,0.0001,2]
[421984124,1778403126000,-2500.0,0.00010178,2]
[421984123,1778403126000,-194.98,0.00010027,2]
[421984125,1778403126000,-10000.7527844,0.00010261,2]
[421984126,1778403126000,-194.98,0.00010278,2]
[421984127,1778403126000,-19625.88340108,0.00010279,2]
[421984117,1778403126000,-500.0,0.0001,2]
[421984130,1778403127000,-7590.66980954,0.00010179,2]
[421984128,1778403127000,-151.0,0.0001,2]
[421984131,1778403127000,3000.01,0.00027,120]
[421984129,1778403127000,-175.42277483,0.0001,2]
[421984137,1778403128000,345.42,8.847e-05,2]
[421984135,1778403128000,150.0,5.719e-05,2]
[421984134,1778403128000,150.0,5.664e-05,2]
[421984133,1778403128000,150.0,5.609e-05,2]
[421984132,1778403128000,150.0,5.554e-05,2]
[421984139,1778403130000,-472.972065,9.815e-05,2]
[421984138,1778403130000,-362.91570498,9.815e-05,2]
[421984140,1778403286000,-472.972065,9.815e-05,2]
[421984141,1778403287000,-472.972065,9.063e-05,2]
[421984143,1778403287000,-27.027935,9.063e-05,2]
[421984142,1778403287000,500.0,8.985e-05,2]
[421984145,1778403287000,-300.0,9.062e-05,2]
[421984146,1778403287000,-172.972065,9.062e-05,2]
[421984144,1778403287000,-445.94413,9.063e-05,2]
[421984148,1778403288000,-472.972065,9.062e-05,2]
[421984152,1778403288000,-333.2607817,9.063e-05,2]
[421984153,1778403288000,-13978.86332071,9.063e-05,2]
[421984155,1778403288000,-151676.52246502,9.815e-05,2]
[421984149,1778403288000,-81.083805,9.062e-05,2]
[421984150,1778403288000,-1789.80569191,9.063e-05,2]
[421984151,1778403288000,-1015.04698736,9.063e-05,2]
[421984154,1778403288000,-130898.68908832,9.063e-05,2]
[421984156,1778403288000,-1711.47394052,9.914e-05,2]
[421984157,1778403288000,-1680.0,9.968e-05,2]
[421984166,1778403288000,-500.0,0.00010279,2]
[421984158,1778403288000,-30221.17809046,0.00010179,2]
[421984147,1778403288000,-472.972065,9.062e-05,2]
[421984164,1778403288000,-343.29292514,0.00010279,2]
[421984159,1778403288000,-2500.0,0.00010179,2]
[421984171,1778403288000,-17663.43164781,0.00010475,2]
[421984173,1778403288000,-592.2336,0.00010475,2]
[421984172,1778403288000,-868.52832,0.00010475,2]
[421984169,1778403288000,-17099.03711387,0.00010378,2]
[421984168,1778403288000,-2000.0,0.00010279,2]
[421984170,1778403288000,-161.92,0.00010389,2]
[421984165,1778403288000,-34059.94658408,0.00010279,2]
[421984160,1778403288000,-192684.45992225,0.00010279,2]
[421984162,1778403288000,-405.21062676,0.00010279,2]
[421984163,1778403288000,-927.55529614,0.00010279,2]
[421984161,1778403288000,-56616.16764455,0.00010279,2]
[421984167,1778403288000,-33151.4432,0.00010279,2]
[421984189,1778403289000,-194.98,0.00010779,2]
[421984190,1778403289000,-1883.9695478,0.000109,2]
[421984194,1778403289000,-2351.0,0.00010965,2]
[421984191,1778403289000,-227.17,0.00010922,2]
[421984195,1778403289000,-1895.29,0.00011014,2]
[421984192,1778403289000,-161.92,0.00010931,2]
[421984196,1778403289000,-194.98,0.0001103,2]
[421984197,1778403289000,-486.41666779,0.00011099,2]
[421984200,1778403289000,-999.99,0.00011281,2]
[421984188,1778403289000,-194.98,0.00010529,2]
[421984193,1778403289000,-500.0,0.00010959,2]
[421984186,1778403289000,-9999.99,0.00010475,2]
[421984181,1778403289000,-2362.31370754,0.00010475,2]
[421984183,1778403289000,-9999.99,0.00010475,2]
[421984185,1778403289000,-150.99,0.00010475,2]
[421984184,1778403289000,-9999.99,0.00010475,2]
[421984182,1778403289000,-13741.26833853,0.00010475,2]
[421984180,1778403289000,-380.52932165,0.00010475,2]
[421984179,1778403289000,-26483.85920591,0.00010475,2]
[421984177,1778403289000,-692.56038496,0.00010475,2]
[421984178,1778403289000,-3366.73601876,0.00010475,2]
[421984176,1778403289000,-369.98931999,0.00010475,2]
[421984175,1778403289000,-254.14013485,0.00010475,2]
[421984174,1778403289000,-15943.8,0.00010475,2]
[421984201,1778403289000,-23887.37207547,0.00011281,2]
[421984187,1778403289000,-1301.62,0.00010475,2]
[421984198,1778403289000,-373.68526464,0.00011099,2]
[421984228,1778403289000,-200.0,0.00013699,2]
[421984203,1778403289000,-299.99,0.00011281,2]
[421984225,1778403289000,-500.0,0.00013698,2]
[421984227,1778403289000,-2500.0,0.00013699,2]
[421984226,1778403289000,-500.0,0.00013698,2]
[421984223,1778403289000,-539.16316336,0.00013698,2]
[421984222,1778403289000,-1895.29,0.00013462,2]
[421984224,1778403289000,-500.0,0.00013698,2]
[421984220,1778403289000,-4609.0,0.00013267,2]
[421984221,1778403289000,-227.17,0.00013349,2]
[421984219,1778403289000,-663.49501566,0.00012277,2]
[421984218,1778403289000,-1895.29,0.00012238,2]
[421984217,1778403289000,-227.17,0.00012136,2]
[421984215,1778403289000,-3292.0,0.00012061,2]
[421984199,1778403289000,-164.55,0.00011233,2]
[421984213,1778403289000,-101.76655948,0.00011987,2]
[421984216,1778403289000,-172.42542554,0.00012073,2]
[421984202,1778403289000,-3476.72792453,0.00011281,2]
[421984206,1778403289000,-22564.99248203,0.00011281,2]
[421984204,1778403289000,-1486.71,0.00011281,2]
[421984207,1778403289000,-2434.99751797,0.00011281,2]
[421984205,1778403289000,-704.66,0.00011281,2]
[421984209,1778403289000,-150.0,0.0001197,2]
[421984210,1778403289000,-150.0,0.0001197,2]
[421984208,1778403289000,-161.92,0.00011473,2]
[421984214,1778403289000,-1535.05771795,0.00011987,2]
[421984212,1778403289000,-3363.17572257,0.00011987,2]
[421984211,1778403289000,-150.0,0.0001197,2]
[421984268,1778403290000,-166.47016667,0.00021,2]
[421984266,1778403290000,-373.68526459,0.00020753,2]
[421984265,1778403290000,-2231.4695703,0.00020624,2]
[421984267,1778403290000,-486.41666775,0.00020753,2]
[421984258,1778403290000,-356.196,0.0001996,2]
[421984260,1778403290000,-3383.475,0.0001996,2]
[421984262,1778403290000,-283.616,0.0001996,2]
[421984261,1778403290000,-219.0,0.0001996,2]
[421984263,1778403290000,-155.0,0.0002,2]
[421984264,1778403290000,-284.0,0.0002,2]
[421984269,1778403290000,-284.0,0.00021,2]
[421984279,1778403290000,-198.659498,0.00023627,14]
[421984272,1778403290000,-1078.74,0.00022691,2]
[421984280,1778403290000,-1883.96954776,0.00023774,2]
[421984270,1778403290000,-5000.0,0.00021918,2]
[421984278,1778403290000,-179.329749,0.00023627,14]
[421984259,1778403290000,-5796.0,0.0001996,2]
[421984277,1778403290000,-160.0,0.00023627,14]
[421984275,1778403290000,-284.0,0.00023,2]
[421984274,1778403290000,-252.0,0.0002296,2]
[421984273,1778403290000,-497.9081626,0.00022936,2]
[421984276,1778403290000,-500.0,0.00023218,2]
[421984281,1778403290000,-284.0,0.00024,2]
[421984283,1778403290000,-373.68526459,0.00024277,2]
[421984271,1778403290000,-284.0,0.00022,2]
[421984257,1778403290000,-508.408,0.0001996,2]
[421984253,1778403290000,-490.167981,0.00017321,7]
[421984252,1778403290000,-160.0,0.00017321,7]
[421984229,1778403290000,-166.66,0.00013699,2]
[421984230,1778403290000,-373.68526459,0.00013704,2]
[421984231,1778403290000,-486.41666775,0.00013704,2]
[421984235,1778403290000,-166.66,0.0001411,2]
[421984243,1778403290000,-1883.96954776,0.00014711,2]
[421984233,1778403290000,-166.66,0.00013973,2]
[421984232,1778403290000,-166.66,0.00013836,2]
[421984234,1778403290000,-250.0,0.00014,2]
[421984236,1778403290000,-502.49893683,0.00014185,2]
[421984242,1778403290000,-1895.29,0.00014686,2]
[421984238,1778403290000,-166.66,0.00014384,2]
[421984241,1778403290000,-169.21,0.00014631,2]
[421984237,1778403290000,-166.66,0.00014247,2]
[421984239,1778403290000,-227.17,0.00014563,2]
[421984282,1778403290000,-1468.39,0.00024174,2]
[421984244,1778403290000,-471.73764346,0.00016438,2]
[421984245,1778403290000,-500.0,0.00016438,2]
[421984247,1778403290000,-1000.0,0.00016986,2]
[421984246,1778403290000,-500.0,0.00016438,2]
[421984248,1778403290000,-152.28289942,0.00016986,2]
[421984249,1778403290000,-285.08676474,0.00017191,2]
[421984254,1778403290000,-820.335962,0.00017321,7]
[421984251,1778403290000,-486.41666775,0.00017228,2]
[421984256,1778403290000,-1883.96954776,0.00019242,2]
[421984255,1778403290000,-214.7734975,0.00017417,2]
[421984250,1778403290000,-373.68526459,0.00017228,2]
[421984240,1778403290000,-5609.0,0.00014594,2]
[421984286,1778403290000,-234.29,0.00024658,2]
[421984284,1778403290000,-486.41666775,0.00024277,2]
[421984314,1778403290000,-162.29,0.0002605,2]
[421984317,1778403290000,-162.29,0.00026137,7]
[421984318,1778403290000,-160.74,0.00026151,7]
[421984315,1778403290000,-156.27,0.00026052,2]
[421984320,1778403290000,-162.29,0.00026225,30]
[421984322,1778403290000,-153.44,0.00026301,2]
[421984321,1778403290000,-160.74,0.00026236,30]
[421984324,1778403290000,-162.29,0.00026312,2]
[421984323,1778403290000,-154.91,0.00026301,2]
[421984285,1778403290000,-1000.0,0.00024658,2]
[421984328,1778403290000,-160.74,0.00026405,7]
[421984330,1778403290000,-167.43,0.00026484,7]
[421984326,1778403290000,-160.74,0.00026321,2]
[421984329,1778403290000,-156.27,0.00026444,2]
[421984327,1778403290000,-162.29,0.000264,7]
[421984331,1778403290000,-162.29,0.00026487,30]
[421984332,1778403290000,-160.74,0.0002649,30]
[421984334,1778403290000,-153.44,0.00026575,7]
[421984336,1778403290000,-162.31,0.00026575,2]
[421984337,1778403290000,-154.91,0.00026575,7]
[421984335,1778403290000,-156.27,0.00026575,7]
[421984333,1778403290000,-160.79,0.00026575,2]
[421984339,1778403290000,-154.91,0.00026849,30]
[421984340,1778403290000,-153.05,0.00026883,7]
[421984338,1778403290000,-153.44,0.00026849,30]
[421984313,1778403290000,-200.0,0.00026036,2]
[421984319,1778403290000,-156.27,0.00026182,7]
[421984325,1778403290000,-156.27,0.00026313,30]
[421984312,1778403290000,-154.91,0.00026027,30]
[421984316,1778403290000,-160.74,0.00026067,2]
[421984289,1778403290000,-182.57,0.00024658,2]
[421984287,1778403290000,-153.44,0.00024658,2]
[421984291,1778403290000,-164.31,0.00024658,2]
[421984290,1778403290000,-154.91,0.00024658,2]
[421984292,1778403290000,-153.44,0.00024931,7]
[421984293,1778403290000,-16.60367529,0.00024931,7]
[421984299,1778403290000,-1339.83299523,0.0002527,2]
[421984295,1778403290000,-302.85019284,0.00025,2]
[421984294,1778403290000,-138.30632471,0.00024931,7]
[421984296,1778403290000,-167.43,0.00025114,7]
[421984297,1778403290000,-153.44,0.00025205,30]
[421984288,1778403290000,-167.43,0.00024658,2]
[421984300,1778403290000,-200.0,0.0002527,2]
[421984298,1778403290000,-154.91,0.00025205,30]
[421984307,1778403290000,-200.0,0.00025778,2]
[421984311,1778403290000,-167.43,0.00026027,2]
[421984306,1778403290000,-154.91,0.00025753,7]
[421984310,1778403290000,-153.44,0.00026027,30]
[421984309,1778403290000,-204.51851605,0.00025786,2]
[421984304,1778403290000,-167.43,0.00025571,30]
[421984305,1778403290000,-153.44,0.00025753,7]
[421984303,1778403290000,-200.0,0.00025523,2]
[421984301,1778403290000,-153.44,0.00025479,2]
[421984302,1778403290000,-154.91,0.00025479,2]
[421984308,1778403290000,-1263.87148395,0.00025786,2]
[421984355,1778403291000,-155.0,0.00030513,30]
[421984356,1778403291000,-284.0,0.00030513,30]
[421984358,1778403291000,-486.41666775,0.00031326,2]
[421984360,1778403291000,-151.0,0.00031513,30]
[421984364,1778403291000,-155.0,0.00032513,30]
[421984359,1778403291000,-653.557308,0.00031493,14]
[421984363,1778403291000,-151.0,0.00032513,30]
[421984357,1778403291000,-373.68526459,0.00031326,2]
[421984351,1778403291000,-500.0,0.00027863,2]
[421984365,1778403291000,-284.0,0.00032513,30]
[421984366,1778403291000,-1883.96954776,0.00032837,2]
[421984352,1778403291000,-448.324373,0.00027923,14]
[421984349,1778403291000,-373.68526459,0.00027802,2]
[421984350,1778403291000,-486.41666775,0.00027802,2]
[421984354,1778403291000,-151.0,0.00030513,30]
[421984348,1778403291000,-413.23,0.00027397,10]
[421984346,1778403291000,-154.98,0.00027397,7]
[421984345,1778403291000,-167.45,0.00027397,2]
[421984344,1778403291000,-153.45,0.00027397,7]
[421984341,1778403291000,-167.43,0.0002694,30]
[421984343,1778403291000,-154.91,0.00027123,2]
[421984342,1778403291000,-153.44,0.00027123,2]
[421984353,1778403291000,-1883.96954776,0.00028305,2]
[421984361,1778403291000,-155.0,0.00031513,30]
[421984347,1778403291000,-274.51,0.00027397,2]
[421984368,1778403291000,-161.7242559,0.00033513,30]
[421984391,1778403291000,-322.972065,9.815e-05,2]
[421984390,1778403291000,150.0,9.062e-05,2]
[421984389,1778403291000,-174.332065,9.815e-05,2]
[421984388,1778403291000,298.64,8.833e-05,2]
[421984387,1778403291000,-622.79518482,0.00037753,120]
[421984386,1778403291000,-150.0,0.000375,120]
[421984385,1778403291000,-1883.96954776,0.00037368,2]
[421984383,1778403291000,-284.0,0.00036513,30]
[421984384,1778403291000,-182.55779898,0.000372,120]
[421984382,1778403291000,-155.0,0.00036513,30]
[421984380,1778403291000,-284.0,0.00035513,30]
[421984381,1778403291000,-197.25844648,0.00035616,2]
[421984362,1778403291000,-284.0,0.00031513,30]
[421984373,1778403291000,-448.324373,0.00034367,21]
[421984374,1778403291000,-155.0,0.00034513,30]
[421984375,1778403291000,-284.0,0.00034513,30]
[421984371,1778403291000,-910.575,0.00033641,36]
[421984370,1778403291000,-284.0,0.00033513,30]
[421984377,1778403291000,-486.41666775,0.00034851,2]
[421984372,1778403291000,-160.0,0.00034,30]
[421984367,1778403291000,-461.0,0.00032991,30]
[421984376,1778403291000,-373.68526459,0.00034851,2]
[421984369,1778403291000,-155.0,0.00033513,30]
[421984378,1778403291000,-150.0,0.00035,120]
[421984379,1778403291000,-155.0,0.00035513,30]
[421984393,1778403292000,150.0,5.554e-05,2]
[421984392,1778403292000,-472.972065,9.815e-05,2]
[421984394,1778403292000,262.0,5.609e-05,2]
[421984398,1778403292000,250.0,6.25e-05,2]
[421984396,1778403292000,-472.972065,9.815e-05,2]
[421984397,1778403292000,1057.56,8.744e-05,2]
[421984395,1778403292000,-60.972065,9.815e-05,2]
[421984399,1778403448000,-9165.422065,9.815e-05,2]
[421984402,1778403449000,-10000.01,9.815e-05,2]
[421984400,1778403449000,-10000.01,9.815e-05,2]
[421984401,1778403449000,-10000.01,9.815e-05,2]
[421984403,1778403449000,-10000.01,9.815e-05,2]
[421984407,1778403449000,250.0,5.582e-05,2]
[421984405,1778403449000,-9700.01,9.815e-05,2]
[421984406,1778403449000,250.0,6.109e-05,2]
[421984408,1778403449000,312.38555501,6.998e-05,2]
[421984404,1778403449000,-300.0,9.062e-05,2]
[421984410,1778403450000,-10000.01,9.815e-05,2]
[421984409,1778403450000,-10000.01,9.815e-05,2]
[421984412,1778403451000,-10000.01,9.815e-05,2]
[421984411,1778403451000,-10000.01,9.815e-05,2]
[421984419,1778403452000,-793.01292092,9.814e-05,2]
[421984414,1778403452000,-150.0,9.062e-05,2]
[421984415,1778403452000,-522.27580116,9.814e-05,2]
[421984416,1778403452000,-9327.73419884,9.815e-05,2]
[421984417,1778403452000,-10000.01,9.815e-05,2]
[421984422,1778403452000,-793.01292092,9.814e-05,2]
[421984418,1778403452000,-793.01292092,9.814e-05,2]
[421984421,1778403452000,-793.01292092,9.814e-05,2]
[421984413,1778403452000,-10000.01,9.815e-05,2]
[421984423,1778403452000,-793.01292092,9.814e-05,2]
[421984424,1778403452000,-793.01292092,9.814e-05,2]
[421984425,1778403452000,-793.01292092,9.814e-05,2]
[421984427,1778403452000,-793.01292092,9.814e-05,2]
[421984426,1778403452000,-793.01292092,9.814e-05,2]
[421984428,1778403452000,-793.01292092,9.814e-05,2]
[421984429,1778403452000,-793.01292092,9.814e-05,2]
[421984430,1778403452000,-483.85494896,9.814e-05,2]
[421984420,1778403452000,-793.01292092,9.814e-05,2]
[421984445,1778403453000,155.47,4.597e-05,2]
[421984442,1778403453000,-793.01292092,9.814e-05,2]
[421984441,1778403453000,-793.01292092,9.814e-05,2]
[421984443,1778403453000,-793.01292092,9.814e-05,2]
[421984444,1778403453000,-174.696977,9.814e-05,2]
[421984440,1778403453000,-793.01292092,9.814e-05,2]
[421984434,1778403453000,-793.01292092,9.814e-05,2]
[421984437,1778403453000,-793.01292092,9.814e-05,2]
[421984435,1778403453000,-793.01292092,9.814e-05,2]
[421984446,1778403453000,155.47,4.839e-05,2]
[421984436,1778403453000,-793.01292092,9.814e-05,2]
[421984433,1778403453000,-793.01292092,9.814e-05,2]
[421984432,1778403453000,-793.01292092,9.814e-05,2]
[421984431,1778403453000,-309.15797196,9.814e-05,2]
[421984439,1778403453000,-793.01292092,9.814e-05,2]
[421984448,1778403453000,155.47,5.323e-05,2]
[421984438,1778403453000,-793.01292092,9.814e-05,2]
[421984447,1778403453000,155.47,5.081e-05,2]
[421984449,1778403453000,155.47,5.565e-05,2]
[421984463,1778403453000,155.47,8.711e-05,2]
[421984461,1778403453000,155.47,8.227e-05,2]
[421984462,1778403453000,155.47,8.469e-05,2]
[421984460,1778403453000,155.47,7.985e-05,2]
[421984459,1778403453000,155.47,7.743e-05,2]
[421984457,1778403453000,155.47,7.259e-05,2]
[421984464,1778403453000,155.47,8.953e-05,2]
[421984456,1778403453000,155.47,7.017e-05,2]
[421984455,1778403453000,155.47,6.775e-05,2]
[421984454,1778403453000,7.02555501,6.533e-05,2]
[421984453,1778403453000,148.44444499,6.533e-05,2]
[421984451,1778403453000,155.47,6.049e-05,2]
[421984452,1778403453000,155.47,6.291e-05,2]
[421984450,1778403453000,155.47,5.807e-05,2]
[421984458,1778403453000,155.47,7.501e-05,2]
[421984474,1778403454000,-793.01292092,9.814e-05,2]
[421984476,1778403454000,-793.01292092,9.814e-05,2]
[421984475,1778403454000,-793.01292092,9.814e-05,2]
[421984473,1778403454000,-793.01292092,9.814e-05,2]
[421984470,1778403454000,-793.01292092,9.814e-05,2]
[421984472,1778403454000,-793.01292092,9.814e-05,2]
[421984468,1778403454000,-793.01292092,9.814e-05,2]
[421984471,1778403454000,-793.01292092,9.814e-05,2]
[421984466,1778403454000,-618.31594392,9.814e-05,2]
[421984469,1778403454000,-793.01292092,9.814e-05,2]
[421984465,1778403454000,-155.47,9.195e-05,2]
[421984477,1778403454000,-793.01292092,9.814e-05,2]
[421984467,1778403454000,-793.01292092,9.814e-05,2]
[421984478,1778403454000,-503.08192596,9.814e-05,2]
[421984482,1778403454000,-793.01292092,9.814e-05,2]
[421984480,1778403454000,-1200.0,9.813e-05,2]
[421984492,1778403454000,-770.80855913,9.814e-05,2]
[421984487,1778403454000,-770.80855913,9.814e-05,2]
[421984488,1778403454000,-770.80855913,9.814e-05,2]
[421984490,1778403454000,-770.80855913,9.814e-05,2]
[421984491,1778403454000,-770.80855913,9.814e-05,2]
[421984489,1778403454000,-770.80855913,9.814e-05,2]
[421984479,1778403454000,-157.0,9.813e-05,2]
[421984484,1778403454000,-770.80855913,9.814e-05,2]
[421984485,1778403454000,-770.80855913,9.814e-05,2]
[421984483,1778403454000,-488.89464395,9.814e-05,2]
[421984493,1778403454000,-133.894408,9.814e-05,2]
[421984481,1778403454000,-289.93099496,9.814e-05,2]
[421984486,1778403454000,-770.80855913,9.814e-05,2]
[421984494,1778403455000,-10000.01,9.715e-05,2]
[421984496,1778403456000,200.0,7.592e-05,2]
[421984497,1778403456000,175.51,7.487e-05,2]
[421984495,1778403456000,-10000.01,9.715e-05,2]
[421984500,1778403456000,-9824.5,9.715e-05,2]
[421984499,1778403456000,-175.51,9.359e-05,2]
[421984498,1778403456000,175.51,8.423e-05,2]
[421984515,1778403550000,-408.025,9.813e-05,2]
[421984522,1778403550000,-500.0,9.813e-05,2]
[421984524,1778403550000,-500.0,9.813e-05,2]
[421984521,1778403550000,-500.0,9.813e-05,2]
[421984523,1778403550000,-500.0,9.813e-05,2]
[421984520,1778403550000,-500.0,9.813e-05,2]
[421984519,1778403550000,-500.0,9.813e-05,2]
[421984518,1778403550000,-500.0,9.813e-05,2]
[421984517,1778403550000,-500.0,9.813e-05,2]
[421984516,1778403550000,-500.0,9.813e-05,2]
[421984511,1778403550000,-500.0,9.813e-05,2]
[421984507,1778403550000,-500.0,9.813e-05,2]
[421984513,1778403550000,-500.0,9.813e-05,2]
[421984512,1778403550000,-500.0,9.813e-05,2]
[421984510,1778403550000,-500.0,9.813e-05,2]
[421984509,1778403550000,-500.0,9.813e-05,2]
[421984506,1778403550000,-500.0,9.813e-05,2]
[421984508,1778403550000,-500.0,9.813e-05,2]
[421984505,1778403550000,-500.0,9.813e-05,2]
[421984502,1778403550000,-500.0,9.813e-05,2]
[421984526,1778403550000,-500.0,9.813e-05,2]
[421984501,1778403550000,-3908.035,9.715e-05,2]
[421984504,1778403550000,-500.0,9.813e-05,2]
[421984514,1778403550000,-91.975,9.813e-05,2]
[421984503,1778403550000,-500.0,9.813e-05,2]
[421984527,1778403550000,-500.0,9.813e-05,2]
[421984529,1778403550000,-500.0,9.813e-05,2]
[421984552,1778403550000,-2649.59478021,9.815e-05,2]
[421984551,1778403550000,-197.6408428,9.814e-05,2]
[421984525,1778403550000,-500.0,9.813e-05,2]
[421984550,1778403550000,-500.0,9.814e-05,2]
[421984542,1778403550000,-341.5760519,9.814e-05,2]
[421984547,1778403550000,-500.0,9.814e-05,2]
[421984544,1778403550000,-500.0,9.814e-05,2]
[421984545,1778403550000,-420.69363477,9.814e-05,2]
[421984543,1778403550000,-500.0,9.814e-05,2]
[421984548,1778403550000,-500.0,9.814e-05,2]
[421984546,1778403550000,-630.93853974,9.814e-05,2]
[421984541,1778403550000,-500.0,9.813e-05,2]
[421984549,1778403550000,-500.0,9.814e-05,2]
[421984538,1778403550000,-500.0,9.813e-05,2]
[421984528,1778403550000,-500.0,9.813e-05,2]
[421984531,1778403550000,-500.0,9.813e-05,2]
[421984540,1778403550000,-500.0,9.813e-05,2]
[421984532,1778403550000,-500.0,9.813e-05,2]
[421984535,1778403550000,-91.985,9.813e-05,2]
[421984530,1778403550000,-500.0,9.813e-05,2]
[421984533,1778403550000,-500.0,9.813e-05,2]
[421984539,1778403550000,-500.0,9.813e-05,2]
[421984537,1778403550000,-500.0,9.813e-05,2]
[421984536,1778403550000,-259.56615058,9.813e-05,2]
[421984534,1778403550000,-500.0,9.813e-05,2]
[421984556,1778403551000,-10000.01,9.815e-05,2]
[421984555,1778403551000,-7575.02539851,9.815e-05,2]
[421984554,1778403551000,-2424.98460149,9.805e-05,2]
[421984553,1778403551000,-10000.01,9.805e-05,2]
[421984557,1778403552000,-10000.01,9.815e-05,2]
[421984560,1778403552000,-10000.01,9.815e-05,2]
[421984559,1778403552000,-9500.01,9.815e-05,2]
[421984558,1778403552000,-500.0,9.715e-05,2]
[421984563,1778403553000,-3908.035,9.715e-05,2]
[421984562,1778403553000,-3908.035,9.715e-05,2]
[421984561,1778403553000,-10000.01,9.715e-05,2]
[421984565,1778403709000,-3908.035,9.715e-05,2]
[421984564,1778403709000,-3908.035,9.715e-05,2]
[421984568,1778403710000,5000.01,9.666e-05,2]
[421984567,1778403710000,-3908.035,9.715e-05,2]
[421984566,1778403710000,-3908.035,9.715e-05,2]
[421984570,1778403711000,-2012.186365,9.715e-05,2]
[421984569,1778403711000,-1895.848635,9.666e-05,2]
[421984571,1778403711000,-3908.035,9.715e-05,2]
[421984573,1778403711000,-3725.07948752,9.715e-05,2]
[421984572,1778403711000,-182.95551248,9.714e-05,2]
[421984575,1778403711000,-500.0,9.714e-05,2]
[421984576,1778403711000,-9200.01,9.715e-05,2]
[421984574,1778403711000,-300.0,9.714e-05,2]
[421984585,1778403712000,-8150.01,9.715e-05,2]
[421984578,1778403712000,-500.0,9.714e-05,2]
[421984577,1778403712000,-10000.01,9.715e-05,2]
[421984580,1778403712000,-10000.01,9.715e-05,2]
[421984579,1778403712000,-9500.01,9.715e-05,2]
[421984582,1778403712000,-500.0,9.666e-05,2]
[421984583,1778403712000,-1200.0,9.713e-05,2]
[421984584,1778403712000,-150.0,9.714e-05,2]
[421984581,1778403712000,-10000.01,9.715e-05,2]
[421984588,1778403713000,-10000.01,9.715e-05,2]
[421984587,1778403713000,-9835.92,9.715e-05,2]
[421984586,1778403713000,-164.09,9.398e-05,2]
[421984592,1778403714000,-500.0,9.714e-05,2]
[421984589,1778403714000,-10000.01,9.715e-05,2]
[421984591,1778403714000,-500.0,9.714e-05,2]
[421984590,1778403714000,-500.0,9.714e-05,2]
[421984594,1778403714000,-227.25968872,9.714e-05,2]
[421984597,1778403714000,-9591.86373441,9.715e-05,2]
[421984595,1778403714000,-7772.75031128,9.715e-05,2]
[421984596,1778403714000,-408.14626559,9.714e-05,2]
[421984598,1778403714000,-10000.01,9.715e-05,2]
[421984593,1778403714000,-500.0,9.714e-05,2]
[421984599,1778403714000,-10000.01,9.715e-05,2]
[421984601,1778403715000,-10000.01,9.715e-05,2]
[421984600,1778403715000,-10000.01,9.715e-05,2]
[421984602,1778403739000,1061.30121,0.00025927,120]
[421984603,1778403753000,468.38,8e-05,2]
[421984604,1778403765000,2148.3227,9.665e-05,2]
[421984605,1778403803000,-150.0,9.713e-05,2]
[421984606,1778403814000,2383.3073,9.615e-05,2]
[421984607,1778403814000,-500.0,9.615e-05,2]
[421984608,1778403826000,150.0,9.215e-05,2]
[421984609,1778403854000,4850.01,9.042e-05,2]
[421984610,1778403854000,46013.66,9.042e-05,2]
[421984611,1778403912000,-300.0,9.041e-05,2]